[Event "Early-Titled-Tuesday-Blitz-January-16-2024"]
[Site "Chess.com"]
[Date "2024.01.16"]
[Round "1"]
[White "vugarrasulov"]
[Black "Journey_to_GrandMaster_YT"]
[Result "1-0"]
[WhiteElo "2964"]
[BlackElo "2510"]
[TimeControl "180+1"]
[EndTime "8:06:50 PST"]
[Termination "vugarrasulov won on time"]

1. e4 {[%clk 0:03:00.9]} 1... d6 {[%clk 0:02:59.9]} 2. d4 {[%clk 0:03:00.7]}
2... Nf6 {[%clk 0:03:00.2]} 3. Nc3 {[%clk 0:03:01]} 3... e5 {[%clk 0:02:58.9]}
4. Nf3 {[%clk 0:03:00.8]} 4... Nbd7 {[%clk 0:02:58.8]} 5. g3 {[%clk 0:02:59.6]}
5... c6 {[%clk 0:02:58]} 6. Bg2 {[%clk 0:02:59.6]} 6... b5 {[%clk 0:02:58.2]} 7.
O-O {[%clk 0:02:59.2]} 7... Be7 {[%clk 0:02:57.9]} 8. Nh4 {[%clk 0:02:57.7]}
8... exd4 {[%clk 0:02:54.3]} 9. Qxd4 {[%clk 0:02:55]} 9... Ne5 {[%clk
0:02:08.7]} 10. Nf5 {[%clk 0:02:48.5]} 10... Bxf5 {[%clk 0:02:08.3]} 11. exf5
{[%clk 0:02:49.4]} 11... Rc8 {[%clk 0:02:07.1]} 12. Bf4 {[%clk 0:02:43.5]} 12...
Qb6 {[%clk 0:02:00.2]} 13. Bxe5 {[%clk 0:02:38.1]} 13... dxe5 {[%clk 0:01:57.7]}
14. Qxe5 {[%clk 0:02:39]} 14... Qc7 {[%clk 0:01:57.8]} 15. Rfe1 {[%clk
0:02:32.1]} 15... Qxe5 {[%clk 0:01:53.2]} 16. Rxe5 {[%clk 0:02:33]} 16... Kd7
{[%clk 0:01:43.3]} 17. Rd1+ {[%clk 0:02:25.5]} 17... Bd6 {[%clk 0:01:42.9]} 18.
a4 {[%clk 0:02:15.2]} 18... a6 {[%clk 0:01:33.5]} 19. Re2 {[%clk 0:02:03.3]}
19... Rhd8 {[%clk 0:01:30.9]} 20. Ne4 {[%clk 0:02:00.4]} 20... Nxe4 {[%clk
0:01:28]} 21. Bxe4 {[%clk 0:02:01.3]} 21... Kc7 {[%clk 0:01:20.7]} 22. Kg2
{[%clk 0:01:58.6]} 22... f6 {[%clk 0:01:16.9]} 23. Bd3 {[%clk 0:01:56.4]} 23...
Be5 {[%clk 0:01:15.4]} 24. b3 {[%clk 0:01:55.4]} 24... Rd7 {[%clk 0:01:13.5]}
25. f4 {[%clk 0:01:51.5]} 25... Bc3 {[%clk 0:01:12.5]} 26. Re6 {[%clk
0:01:48.6]} 26... Rd6 {[%clk 0:01:05.9]} 27. Kf3 {[%clk 0:01:49.1]} 27... Rcd8
{[%clk 0:01:03.3]} 28. g4 {[%clk 0:01:47.1]} 28... R8d7 {[%clk 0:00:56.5]} 29.
h4 {[%clk 0:01:45.4]} 29... h6 {[%clk 0:00:55]} 30. g5 {[%clk 0:01:41.8]} 30...
fxg5 {[%clk 0:00:53.1]} 31. hxg5 {[%clk 0:01:41.4]} 31... hxg5 {[%clk
0:00:53.1]} 32. Rxd6 {[%clk 0:01:40]} 32... Rxd6 {[%clk 0:00:47.2]} 33. fxg5
{[%clk 0:01:40.9]} 33... Kd7 {[%clk 0:00:43.5]} 34. axb5 {[%clk 0:01:40.1]}
34... axb5 {[%clk 0:00:42.1]} 35. Rh1 {[%clk 0:01:36.1]} 35... Bd2 {[%clk
0:00:40.6]} 36. Rh5 {[%clk 0:01:23.7]} 36... Kc7 {[%clk 0:00:34.6]} 37. Rh7
{[%clk 0:01:21.6]} 37... Rd7 {[%clk 0:00:32.7]} 38. Kg4 {[%clk 0:01:21.9]} 38...
Kd6 {[%clk 0:00:29.7]} 39. Kh5 {[%clk 0:01:20.7]} 39... Ke5 {[%clk 0:00:29.3]}
40. Rh8 {[%clk 0:01:16.6]} 40... Rc7 {[%clk 0:00:25.4]} 41. Re8+ {[%clk
0:01:15.8]} 41... Kf4 {[%clk 0:00:25]} 42. f6 {[%clk 0:01:15.8]} 42... gxf6
{[%clk 0:00:22.6]} 43. gxf6 {[%clk 0:01:16.7]} 43... Bc3 {[%clk 0:00:21.7]} 44.
Kg6 {[%clk 0:01:16.8]} 44... c5 {[%clk 0:00:11.4]} 45. f7 {[%clk 0:01:16.1]}
45... Rc6+ {[%clk 0:00:09.2]} 46. Kh7 {[%clk 0:01:16]} 46... Rc7 {[%clk
0:00:09.3]} 47. Kg8 {[%clk 0:01:15.6]} 1-0

[Event "Early-Titled-Tuesday-Blitz-January-16-2024"]
[Site "Chess.com"]
[Date "2024.01.16"]
[Round "1"]
[White "Alenzer"]
[Black "Kotlyar_K"]
[Result "0-1"]
[WhiteElo "2114"]
[BlackElo "2571"]
[TimeControl "180+1"]
[EndTime "8:06:50 PST"]
[Termination "Kotlyar_K won on time"]

1. e4 {[%clk 0:03:00.9]} 1... e5 {[%clk 0:02:53.3]} 2. Nf3 {[%clk 0:02:54.7]}
2... Nc6 {[%clk 0:02:53.1]} 3. Bb5 {[%clk 0:02:50.6]} 3... a6 {[%clk 0:02:51.5]}
4. Ba4 {[%clk 0:02:49.1]} 4... Nf6 {[%clk 0:02:51.4]} 5. O-O {[%clk 0:02:46.6]}
5... Be7 {[%clk 0:02:51.8]} 6. d4 {[%clk 0:02:45.6]} 6... Nxe4 {[%clk
0:02:08.7]} 7. dxe5 {[%clk 0:02:22.6]} 7... Nc5 {[%clk 0:01:57.9]} 8. Bxc6
{[%clk 0:02:12.8]} 8... bxc6 {[%clk 0:01:58.8]} 9. Nc3 {[%clk 0:02:08.4]} 9...
O-O {[%clk 0:01:58.5]} 10. Re1 {[%clk 0:02:04.7]} 10... d5 {[%clk 0:01:51.6]}
11. Bf4 {[%clk 0:02:00.1]} 11... Ne6 {[%clk 0:01:42.3]} 12. Bg3 {[%clk
0:01:58.9]} 12... Rb8 {[%clk 0:01:42.8]} 13. Rb1 {[%clk 0:01:53.7]} 13... Bb7
{[%clk 0:01:41.9]} 14. Ne2 {[%clk 0:01:26.3]} 14... c5 {[%clk 0:01:40.6]} 15.
Nf4 {[%clk 0:01:25.8]} 15... d4 {[%clk 0:01:36.2]} 16. c3 {[%clk 0:01:05.4]}
16... dxc3 {[%clk 0:01:23]} 17. bxc3 {[%clk 0:01:00]} 17... Nxf4 {[%clk
0:01:13.6]} 18. Bxf4 {[%clk 0:00:59.2]} 18... Bc6 {[%clk 0:01:12.2]} 19. Qe2
{[%clk 0:00:47.2]} 19... Rxb1 {[%clk 0:01:08.5]} 20. Rxb1 {[%clk 0:00:46.6]}
20... Qa8 {[%clk 0:01:08.6]} 21. e6 {[%clk 0:00:29.2]} 21... f6 {[%clk
0:01:03.8]} 22. Bxc7 {[%clk 0:00:26.3]} 22... Bb5 {[%clk 0:00:58.9]} 23. c4
{[%clk 0:00:25.7]} 23... Bc6 {[%clk 0:00:58.5]} 24. Rd1 {[%clk 0:00:23]} 24...
Qb7 {[%clk 0:00:54.5]} 25. Bd6 {[%clk 0:00:22.3]} 25... Re8 {[%clk 0:00:53.4]}
26. h3 {[%clk 0:00:19.4]} 26... Bxd6 {[%clk 0:00:39.1]} 27. Rxd6 {[%clk
0:00:18.8]} 27... Qb1+ {[%clk 0:00:39.6]} 28. Kh2 {[%clk 0:00:17.4]} 28... Qb8
{[%clk 0:00:40.2]} 29. Qd2 {[%clk 0:00:08.8]} 29... Rxe6 {[%clk 0:00:39.2]} 30.
Qf4 {[%clk 0:00:03.9]} 30... Qxd6 {[%clk 0:00:39.1]} 0-1

[Event "Early-Titled-Tuesday-Blitz-January-16-2024"]
[Site "Chess.com"]
[Date "2024.01.16"]
[Round "1"]
[White "Niilo1"]
[Black "Alexei_Gubajdullin"]
[Result "0-1"]
[WhiteElo "2281"]
[BlackElo "2624"]
[TimeControl "180+1"]
[EndTime "8:06:52 PST"]
[Termination "Alexei_Gubajdullin won by resignation"]

1. e4 {[%clk 0:03:00.9]} 1... e5 {[%clk 0:01:59.3]} 2. Nf3 {[%clk 0:02:59]} 2...
Nf6 {[%clk 0:01:55.6]} 3. Nc3 {[%clk 0:02:58.2]} 3... Bb4 {[%clk 0:01:54.9]} 4.
Nxe5 {[%clk 0:02:56.7]} 4... O-O {[%clk 0:01:54.8]} 5. Be2 {[%clk 0:02:50.7]}
5... Re8 {[%clk 0:01:54.3]} 6. Nd3 {[%clk 0:02:51]} 6... Bxc3 {[%clk 0:01:54.3]}
7. dxc3 {[%clk 0:02:51.9]} 7... Nxe4 {[%clk 0:01:54.8]} 8. O-O {[%clk
0:02:52.6]} 8... b6 {[%clk 0:01:54.8]} 9. Bf3 {[%clk 0:02:51.6]} 9... Bb7 {[%clk
0:01:54.3]} 10. Nf4 {[%clk 0:02:51.3]} 10... d6 {[%clk 0:01:54]} 11. c4 {[%clk
0:02:48.3]} 11... Nd7 {[%clk 0:01:53.7]} 12. Re1 {[%clk 0:02:46.8]} 12... Ndf6
{[%clk 0:01:52.6]} 13. Nd5 {[%clk 0:02:44.5]} 13... Qc8 {[%clk 0:01:39.4]} 14.
Qd4 {[%clk 0:02:35.4]} 14... Bxd5 {[%clk 0:01:30.2]} 15. cxd5 {[%clk 0:02:35.4]}
15... Qf5 {[%clk 0:01:31.1]} 16. c4 {[%clk 0:02:29.3]} 16... a5 {[%clk
0:01:26.1]} 17. b3 {[%clk 0:02:23.1]} 17... Ng5 {[%clk 0:01:21.9]} 18. Be2
{[%clk 0:02:07.2]} 18... Re4 {[%clk 0:01:18]} 19. Qd3 {[%clk 0:02:03.1]} 19...
Rae8 {[%clk 0:01:14.2]} 20. Be3 {[%clk 0:02:02.6]} 20... Ng4 {[%clk 0:01:00.7]}
21. f3 {[%clk 0:01:25.9]} 21... Qe5 {[%clk 0:00:55.5]} 22. fxe4 {[%clk 0:01:24]}
22... Qxh2+ {[%clk 0:00:50.6]} 23. Kf1 {[%clk 0:01:24.4]} 23... Qh1+ {[%clk
0:00:48.4]} 24. Bg1 {[%clk 0:01:24.2]} 24... Nh2+ {[%clk 0:00:45.5]} 25. Kf2
{[%clk 0:01:24.1]} 25... Nxe4+ {[%clk 0:00:45.4]} 26. Ke3 {[%clk 0:00:38.5]}
26... Nc5+ {[%clk 0:00:44.8]} 27. Kd2 {[%clk 0:00:35.7]} 27... Nxd3 {[%clk
0:00:44.1]} 28. Bxd3 {[%clk 0:00:36.6]} 28... Qxg2+ {[%clk 0:00:43.4]} 29. Kc3
{[%clk 0:00:33.7]} 29... Rxe1 {[%clk 0:00:30.2]} 30. Rxe1 {[%clk 0:00:34.6]}
30... Kf8 {[%clk 0:00:30.1]} 31. Bd4 {[%clk 0:00:23.8]} 31... Nf3 {[%clk
0:00:28.5]} 32. Re2 {[%clk 0:00:24.2]} 32... Qg4 {[%clk 0:00:25.7]} 33. Be3
{[%clk 0:00:21]} 33... h5 {[%clk 0:00:23]} 0-1

[Event "Early-Titled-Tuesday-Blitz-January-16-2024"]
[Site "Chess.com"]
[Date "2024.01.16"]
[Round "1"]
[White "ilqar_74"]
[Black "Quattroporte300"]
[Result "1/2-1/2"]
[WhiteElo "2821"]
[BlackElo "2459"]
[TimeControl "180+1"]
[EndTime "8:06:55 PST"]
[Termination "Game drawn by repetition"]

1. e4 {[%clk 0:03:00.9]} 1... c5 {[%clk 0:02:59.9]} 2. Nf3 {[%clk 0:03:01.1]}
2... e6 {[%clk 0:03:00]} 3. c3 {[%clk 0:03:01.1]} 3... d5 {[%clk 0:02:59.6]} 4.
e5 {[%clk 0:03:01.7]} 4... d4 {[%clk 0:02:59]} 5. d3 {[%clk 0:03:01.7]} 5... Nc6
{[%clk 0:02:58.9]} 6. g3 {[%clk 0:02:57.1]} 6... Nge7 {[%clk 0:02:58.2]} 7. Qe2
{[%clk 0:02:53.2]} 7... g6 {[%clk 0:02:43.8]} 8. Bg2 {[%clk 0:02:52.3]} 8... Bg7
{[%clk 0:02:44.2]} 9. O-O {[%clk 0:02:51.4]} 9... O-O {[%clk 0:02:43.2]} 10. Re1
{[%clk 0:02:51]} 10... Qc7 {[%clk 0:02:34.6]} 11. Nbd2 {[%clk 0:02:46.7]} 11...
Rd8 {[%clk 0:02:21.5]} 12. c4 {[%clk 0:02:32.2]} 12... a6 {[%clk 0:02:10.8]} 13.
h4 {[%clk 0:02:30.2]} 13... b5 {[%clk 0:02:06.4]} 14. h5 {[%clk 0:02:30.1]}
14... Bb7 {[%clk 0:02:05]} 15. b3 {[%clk 0:02:08.8]} 15... Rd7 {[%clk
0:02:04.1]} 16. Ba3 {[%clk 0:02:05.7]} 16... b4 {[%clk 0:02:00]} 17. Bb2 {[%clk
0:02:05.6]} 17... a5 {[%clk 0:01:57.1]} 18. hxg6 {[%clk 0:01:58.1]} 18... Nxg6
{[%clk 0:01:42.6]} 19. a4 {[%clk 0:01:52.6]} 19... Ncxe5 {[%clk 0:01:38.5]} 20.
Nxe5 {[%clk 0:01:52.2]} 20... Nxe5 {[%clk 0:01:33.1]} 21. Nf3 {[%clk 0:01:49.7]}
21... Nxf3+ {[%clk 0:01:12.4]} 22. Bxf3 {[%clk 0:01:49.9]} 22... Bxf3 {[%clk
0:01:13.1]} 23. Qxf3 {[%clk 0:01:50.8]} 23... Qb7 {[%clk 0:01:13.3]} 24. Qxb7
{[%clk 0:01:46.7]} 24... Rxb7 {[%clk 0:01:12.8]} 25. Bc1 {[%clk 0:01:47.2]}
25... e5 {[%clk 0:01:08.3]} 26. Bd2 {[%clk 0:01:47]} 26... Re8 {[%clk
0:01:02.1]} 27. g4 {[%clk 0:01:46.6]} 27... h5 {[%clk 0:00:56.3]} 28. gxh5
{[%clk 0:01:39.1]} 28... f5 {[%clk 0:00:56.3]} 29. f3 {[%clk 0:01:39.1]} 29...
Bf6 {[%clk 0:00:52]} 30. Re2 {[%clk 0:01:36]} 30... Rh7 {[%clk 0:00:49.5]} 31.
h6 {[%clk 0:01:34.9]} 31... Kf7 {[%clk 0:00:46.3]} 32. Rae1 {[%clk 0:01:31.7]}
32... Rg8+ {[%clk 0:00:42]} 33. Rg2 {[%clk 0:01:30.1]} 33... f4 {[%clk
0:00:36.1]} 34. Rxg8 {[%clk 0:01:26.6]} 34... Kxg8 {[%clk 0:00:37]} 35. Kg2
{[%clk 0:01:25.2]} 35... Rxh6 {[%clk 0:00:36.8]} 36. Rg1 {[%clk 0:01:25.3]}
36... Kf7 {[%clk 0:00:36.3]} 37. Be1 {[%clk 0:01:23.4]} 37... Bh4 {[%clk
0:00:20.1]} 38. Bd2 {[%clk 0:01:05.3]} 38... Bg3 {[%clk 0:00:18]} 39. Rh1 {[%clk
0:01:01.5]} 39... Rxh1 {[%clk 0:00:14.7]} 40. Kxh1 {[%clk 0:01:02.4]} 40... Bf2
{[%clk 0:00:14.8]} 41. Kg2 {[%clk 0:01:02.2]} 41... Bh4 {[%clk 0:00:13.3]} 42.
Kh3 {[%clk 0:01:02]} 42... Be7 {[%clk 0:00:11.9]} 43. Kg4 {[%clk 0:01:01.9]}
43... Kg6 {[%clk 0:00:12.5]} 44. Be1 {[%clk 0:01:02.2]} 44... Bf6 {[%clk
0:00:12.5]} 45. Bf2 {[%clk 0:01:02.6]} 45... Be7 {[%clk 0:00:11.9]} 46. Bg1
{[%clk 0:01:03.2]} 46... Bf6 {[%clk 0:00:11.8]} 47. Bf2 {[%clk 0:01:02.8]} 47...
Be7 {[%clk 0:00:12.2]} 48. Bg1 {[%clk 0:01:03.1]} 48... Bf6 {[%clk 0:00:12.4]}
49. Bh2 {[%clk 0:01:01.9]} 49... Be7 {[%clk 0:00:12.3]} 50. Bg1 {[%clk
0:00:59.2]} 1/2-1/2

[Event "Early-Titled-Tuesday-Blitz-January-16-2024"]
[Site "Chess.com"]
[Date "2024.01.16"]
[Round "1"]
[White "LimeInTheCoconut"]
[Black "ChessBliss09"]
[Result "0-1"]
[WhiteElo "2547"]
[BlackElo "2089"]
[TimeControl "180+1"]
[EndTime "8:06:58 PST"]
[Termination "ChessBliss09 won on time"]

1. e4 {[%clk 0:01:42.2]} 1... e6 {[%clk 0:02:57.3]} 2. d4 {[%clk 0:01:41.8]}
2... d5 {[%clk 0:02:57.3]} 3. Nc3 {[%clk 0:01:41.1]} 3... dxe4 {[%clk
0:02:56.8]} 4. Nxe4 {[%clk 0:01:40.6]} 4... Nd7 {[%clk 0:02:55.9]} 5. Nf3 {[%clk
0:01:40.3]} 5... Ngf6 {[%clk 0:02:55.9]} 6. Nxf6+ {[%clk 0:01:40.8]} 6... Nxf6
{[%clk 0:02:56.5]} 7. Be3 {[%clk 0:01:41]} 7... b6 {[%clk 0:02:53]} 8. Bb5+
{[%clk 0:01:41]} 8... Bd7 {[%clk 0:02:51]} 9. Bd3 {[%clk 0:01:40.8]} 9... Bc6
{[%clk 0:02:48.9]} 10. Ne5 {[%clk 0:01:39.9]} 10... Bd7 {[%clk 0:02:28.2]} 11.
Nxd7 {[%clk 0:01:38.5]} 11... Qxd7 {[%clk 0:02:26.7]} 12. Qf3 {[%clk 0:01:39.3]}
12... Rd8 {[%clk 0:02:22.8]} 13. O-O {[%clk 0:01:34.2]} 13... Bd6 {[%clk
0:02:22.2]} 14. Rad1 {[%clk 0:01:32.3]} 14... O-O {[%clk 0:02:21.6]} 15. Bg5
{[%clk 0:01:28.7]} 15... Be7 {[%clk 0:02:15.9]} 16. c3 {[%clk 0:01:28.8]} 16...
h6 {[%clk 0:02:13.8]} 17. Bc1 {[%clk 0:01:28.4]} 17... Qd5 {[%clk 0:02:10.9]}
18. Qxd5 {[%clk 0:01:26.9]} 18... Nxd5 {[%clk 0:02:09]} 19. f4 {[%clk
0:01:18.5]} 19... c5 {[%clk 0:02:05.5]} 20. dxc5 {[%clk 0:01:13.3]} 20... Bxc5+
{[%clk 0:02:04.5]} 21. Kh1 {[%clk 0:01:13.7]} 21... Be3 {[%clk 0:02:03.6]} 22.
Be4 {[%clk 0:00:21.3]} 22... Bxc1 {[%clk 0:01:47.8]} 23. Rxc1 {[%clk 0:00:21.6]}
23... Nf6 {[%clk 0:01:44.3]} 24. Bb1 {[%clk 0:00:09.3]} 24... Rd2 {[%clk
0:01:42.4]} 25. Rc2 {[%clk 0:00:09.7]} 25... Rfd8 {[%clk 0:01:41.5]} 26. Rxd2
{[%clk 0:00:06.4]} 26... Rxd2 {[%clk 0:01:42.4]} 27. b3 {[%clk 0:00:06.7]} 27...
Nd5 {[%clk 0:01:39.1]} 28. g3 {[%clk 0:00:04.9]} 28... Nxc3 {[%clk 0:01:38.6]}
29. Rc1 {[%clk 0:00:01.2]} 29... Nxb1 {[%clk 0:01:38.5]} 30. Rxb1 {[%clk
0:00:01.6]} 30... Rxa2 {[%clk 0:01:37.9]} 31. Rc1 {[%clk 0:00:02.5]} 31... Rb2
{[%clk 0:01:36.4]} 32. Rc8+ {[%clk 0:00:02.6]} 32... Kh7 {[%clk 0:01:35.8]} 33.
Rc7 {[%clk 0:00:03.5]} 33... Kg6 {[%clk 0:01:35.8]} 34. Rxa7 {[%clk 0:00:03.4]}
34... Rxb3 {[%clk 0:01:36.2]} 35. Kg2 {[%clk 0:00:03.7]} 35... Rb1 {[%clk
0:01:35.5]} 36. h3 {[%clk 0:00:03]} 36... b5 {[%clk 0:01:35.6]} 37. g4 {[%clk
0:00:02]} 37... b4 {[%clk 0:01:17.1]} 38. Rb7 {[%clk 0:00:01.8]} 38... b3 {[%clk
0:01:16.5]} 39. Rb6 {[%clk 0:00:01.5]} 39... b2 {[%clk 0:01:05.8]} 40. h4 {[%clk
0:00:01.3]} 40... Kf6 {[%clk 0:01:02.3]} 41. h5 {[%clk 0:00:01]} 41... Ke7
{[%clk 0:00:57.6]} 42. Kh2 {[%clk 0:00:01.7]} 42... Rf1 {[%clk 0:00:53.7]} 0-1

[Event "Early-Titled-Tuesday-Blitz-January-16-2024"]
[Site "Chess.com"]
[Date "2024.01.16"]
[Round "1"]
[White "FrenchMonster2002"]
[Black "PavelShkapenko"]
[Result "0-1"]
[WhiteElo "2413"]
[BlackElo "2779"]
[TimeControl "180+1"]
[EndTime "8:07:00 PST"]
[Termination "PavelShkapenko won on time"]

1. e4 {[%clk 0:03:00.9]} 1... e5 {[%clk 0:02:59.5]} 2. Nf3 {[%clk 0:03:00.1]}
2... Nc6 {[%clk 0:02:59.6]} 3. Bc4 {[%clk 0:02:52.4]} 3... d6 {[%clk 0:02:59.2]}
4. d4 {[%clk 0:02:50.9]} 4... Nf6 {[%clk 0:02:58.7]} 5. dxe5 {[%clk 0:02:48.3]}
5... dxe5 {[%clk 0:02:59.6]} 6. Qxd8+ {[%clk 0:02:46.7]} 6... Nxd8 {[%clk
0:03:00.5]} 7. Nxe5 {[%clk 0:02:41]} 7... Bd6 {[%clk 0:03:01]} 8. Bf4 {[%clk
0:02:06.5]} 8... Nh5 {[%clk 0:02:43.4]} 9. g3 {[%clk 0:01:49.4]} 9... g5 {[%clk
0:02:43]} 10. Bxg5 {[%clk 0:01:38.1]} 10... Bxe5 {[%clk 0:02:43.1]} 11. c3
{[%clk 0:01:30.5]} 11... Ne6 {[%clk 0:01:57.4]} 12. Be3 {[%clk 0:01:27]} 12...
Bd6 {[%clk 0:01:49.2]} 13. Nd2 {[%clk 0:01:03.8]} 13... Bd7 {[%clk 0:01:46.8]}
14. f4 {[%clk 0:00:46.6]} 14... Bc5 {[%clk 0:01:39]} 15. Nf1 {[%clk 0:00:15.7]}
15... Bxe3 {[%clk 0:01:31.6]} 16. Nxe3 {[%clk 0:00:16]} 16... Bc6 {[%clk
0:01:32.3]} 17. Nd5 {[%clk 0:00:04.9]} 17... Bxd5 {[%clk 0:01:27.4]} 18. Bxd5
{[%clk 0:00:05.5]} 18... O-O-O {[%clk 0:01:14.3]} 19. O-O-O {[%clk 0:00:05]}
19... Nf6 {[%clk 0:01:13.7]} 20. c4 {[%clk 0:00:04.5]} 20... c6 {[%clk
0:01:09.1]} 21. Bxe6+ {[%clk 0:00:04.5]} 21... fxe6 {[%clk 0:01:10]} 22. e5
{[%clk 0:00:04.3]} 22... Ng4 {[%clk 0:01:10.2]} 23. Rhe1 {[%clk 0:00:04]} 23...
Nxh2 {[%clk 0:01:09.5]} 24. Rxd8+ {[%clk 0:00:03.6]} 24... Kxd8 {[%clk
0:01:08.3]} 25. Rh1 {[%clk 0:00:04.2]} 25... Ng4 {[%clk 0:01:07.9]} 26. Kd2
{[%clk 0:00:04.1]} 26... h5 {[%clk 0:01:06.3]} 27. Ke2 {[%clk 0:00:03.5]} 27...
Ke7 {[%clk 0:01:06.8]} 28. Rh4 {[%clk 0:00:03]} 28... Kf7 {[%clk 0:01:06]} 29.
Kf3 {[%clk 0:00:03.5]} 29... Kg6 {[%clk 0:01:06.1]} 30. Ke4 {[%clk 0:00:02.7]}
30... Rd8 {[%clk 0:01:06.3]} 31. Rh1 {[%clk 0:00:01.9]} 31... Nh6 {[%clk
0:01:05.2]} 32. Kf3 {[%clk 0:00:01.8]} 32... Rd3+ {[%clk 0:01:02.7]} 33. Ke4
{[%clk 0:00:01.7]} 33... Rxg3 {[%clk 0:00:57.3]} 34. Kd4 {[%clk 0:00:01.4]}
34... h4 {[%clk 0:00:55.2]} 35. Kc5 {[%clk 0:00:01.7]} 35... h3 {[%clk
0:00:55.4]} 36. Kd6 {[%clk 0:00:01.9]} 36... Kf7 {[%clk 0:00:52.9]} 37. Kc7
{[%clk 0:00:01.8]} 37... Ng4 {[%clk 0:00:49.8]} 38. Kd7 {[%clk 0:00:01.4]} 38...
h2 {[%clk 0:00:50]} 39. f5 {[%clk 0:00:01.5]} 39... Nxe5+ {[%clk 0:00:49.7]} 40.
Kd6 {[%clk 0:00:01.8]} 40... Nf3 {[%clk 0:00:47.9]} 41. fxe6+ {[%clk 0:00:02.1]}
41... Ke8 {[%clk 0:00:48.2]} 42. Kc7 {[%clk 0:00:01.6]} 42... Rg1 {[%clk
0:00:47.7]} 0-1

[Event "Early-Titled-Tuesday-Blitz-January-16-2024"]
[Site "Chess.com"]
[Date "2024.01.16"]
[Round "1"]
[White "Nechitaylo_Nikita"]
[Black "HPanesso"]
[Result "0-1"]
[WhiteElo "2289"]
[BlackElo "2631"]
[TimeControl "180+1"]
[EndTime "8:07:01 PST"]
[Termination "HPanesso won by resignation"]

1. d4 {[%clk 0:03:00.9]} 1... d5 {[%clk 0:02:54.9]} 2. c4 {[%clk 0:03:00.7]}
2... dxc4 {[%clk 0:02:54.5]} 3. e3 {[%clk 0:03:00]} 3... e6 {[%clk 0:02:54.5]}
4. Bxc4 {[%clk 0:02:59.3]} 4... Nf6 {[%clk 0:02:54.7]} 5. Nf3 {[%clk 0:02:59.1]}
5... c5 {[%clk 0:02:54.6]} 6. O-O {[%clk 0:02:59.3]} 6... a6 {[%clk 0:02:54.5]}
7. Bb3 {[%clk 0:02:56]} 7... Nc6 {[%clk 0:02:51.6]} 8. Nc3 {[%clk 0:02:54.4]}
8... Be7 {[%clk 0:02:51.1]} 9. dxc5 {[%clk 0:02:37.3]} 9... Qxd1 {[%clk
0:02:47.7]} 10. Rxd1 {[%clk 0:02:35.2]} 10... Bxc5 {[%clk 0:02:48.1]} 11. Nd4
{[%clk 0:02:24.3]} 11... Bd7 {[%clk 0:02:40.9]} 12. Na4 {[%clk 0:01:55.1]} 12...
Ba7 {[%clk 0:02:32.8]} 13. Nxc6 {[%clk 0:01:47.7]} 13... Bxc6 {[%clk 0:02:32.3]}
14. Bd2 {[%clk 0:01:47.3]} 14... b5 {[%clk 0:02:26.5]} 15. Nc3 {[%clk
0:01:41.5]} 15... O-O {[%clk 0:02:22.4]} 16. Rac1 {[%clk 0:01:40.5]} 16... Rfc8
{[%clk 0:02:21.4]} 17. Ne2 {[%clk 0:01:37.6]} 17... Bb6 {[%clk 0:02:06.1]} 18.
Bc3 {[%clk 0:01:01.1]} 18... Ne4 {[%clk 0:02:03.3]} 19. Bd4 {[%clk 0:00:59.9]}
19... Bd8 {[%clk 0:01:55.5]} 20. f3 {[%clk 0:00:56]} 20... Nf6 {[%clk
0:01:41.7]} 21. e4 {[%clk 0:00:43.8]} 21... Bb7 {[%clk 0:01:40.9]} 22. Be3
{[%clk 0:00:37.6]} 22... Kf8 {[%clk 0:01:38.1]} 23. a4 {[%clk 0:00:23.5]} 23...
bxa4 {[%clk 0:01:26.2]} 24. Bxa4 {[%clk 0:00:24.4]} 24... Be7 {[%clk 0:01:22.3]}
25. g4 {[%clk 0:00:16.9]} 25... h6 {[%clk 0:01:22.1]} 26. h4 {[%clk 0:00:15.1]}
26... Rxc1 {[%clk 0:01:19.3]} 27. Rxc1 {[%clk 0:00:15.1]} 27... Rc8 {[%clk
0:01:19.3]} 28. Rxc8+ {[%clk 0:00:14.8]} 28... Bxc8 {[%clk 0:01:20.2]} 29. g5
{[%clk 0:00:15]} 29... hxg5 {[%clk 0:01:18.9]} 30. hxg5 {[%clk 0:00:15.9]} 30...
Nd7 {[%clk 0:01:18.5]} 31. Bc6 {[%clk 0:00:11.2]} 31... Ne5 {[%clk 0:01:18]} 32.
Ba4 {[%clk 0:00:09.3]} 32... Nxf3+ {[%clk 0:01:13.1]} 33. Kf2 {[%clk 0:00:09.8]}
33... Nxg5 {[%clk 0:01:13.5]} 34. Nd4 {[%clk 0:00:08.8]} 34... Nxe4+ {[%clk
0:01:13.2]} 35. Kf3 {[%clk 0:00:09]} 35... Nd6 {[%clk 0:01:09.2]} 36. Nc6 {[%clk
0:00:07.1]} 36... Bb7 {[%clk 0:01:07.2]} 37. Kf4 {[%clk 0:00:05.8]} 37... g5+
{[%clk 0:01:05]} 38. Ke5 {[%clk 0:00:04.9]} 38... Nc4+ {[%clk 0:01:05]} 39. Kd4
{[%clk 0:00:05.3]} 39... Nxe3 {[%clk 0:01:03.5]} 40. Kxe3 {[%clk 0:00:06.2]}
40... Bc5+ {[%clk 0:01:01.2]} 41. Kf3 {[%clk 0:00:06.1]} 41... f5 {[%clk
0:00:57]} 42. Kg3 {[%clk 0:00:05.7]} 42... Bd6+ {[%clk 0:00:56.7]} 43. Kf3
{[%clk 0:00:06.2]} 43... g4+ {[%clk 0:00:57]} 44. Kf2 {[%clk 0:00:06.4]} 44...
f4 {[%clk 0:00:56.6]} 45. Nd8 {[%clk 0:00:04.3]} 45... Bd5 {[%clk 0:00:56.2]}
46. Bd7 {[%clk 0:00:04.5]} 46... Ke7 {[%clk 0:00:53.8]} 0-1